[Event "POL-chT 1 Liga 2019"]
[Site "Dzwirzyno"]
[Date "2019.09.14"]
[Round "8.5"]
[White "Flis, Jacek"]
[Black "Dzierzak, Radoslaw"]
[Result "1/2-1/2"]
[ECO "B40"]
[WhiteElo "2219"]
[BlackElo "2253"]
[Annotator "NA"]
[PlyCount "42"]
[EventDate "2019.09.07"]
[EventType "team-tourn"]
[EventCountry "POL"]
[SourceTitle "playchess.com"]
[Source "ChessBase"]
[SourceQuality "1"]
[TimeControl "40/5400+30:1800+30"]

1. e4 {[%emt 0:00:00]} c5 {[%emt 0:00:00]} 2. Nf3 {[%emt 0:00:02]} e6 {[%emt 0:00:00]} 3. Nc3 {[%emt 0:00:44]} Nc6 {[%emt 0:00:20]} 4. Be2 {[%emt 0:03:03]} Qc7 {[%emt 0:02:12]} 5. O-O {[%emt 0:08:21]} Nf6 {[%emt 0:02:02]} 6. Re1 {[%emt 0:03:06]} a6 {[%emt 0:02:33]} 7. a4 {[%emt 0:02:57]} Bd6 {[%emt 0:02:12]} 8. Bf1 {[%emt 0:04:41]} b6 {[%emt 0:03:58]} 9. h3 {[%emt 0:09:24]} Bb7 {[%emt 0:06:08]} 10. d3 {[%emt 0:13:43]} O-O {[%emt 0:06:42]} 11. Bg5 {[%emt 0:08:41]} h6 {[%emt 0:05:40]} 12. Be3 {[%emt 0:11:08]} Rad8 {[%emt 0:10:17]} 13. g3 {[%emt 0:11:42]} Qb8 {[%emt 0:03:30]} 14. Bg2 {[%emt 0:01:19]} Bc7 {[%emt 0:00:54]} 15. d4 {[%emt 0:09:28]} d5 {[%emt 0:08:15]} 16. exd5 {[%emt 0:01:51]} exd5 {[%emt 0:05:42]} 17. Ne2 {[%emt 0:03:46]} Rfe8 {[%emt 0:07:42]} 18. c3 {[%emt 0:00:59]} Ne4 {[%emt 0:02:05]} 19. Bf4 {[%emt 0:00:41]} Nd6 {[%emt 0:09:27]} 20. Ne5 {[%emt 0:01:46]} Nxe5 {[%emt 0:01:40]} 21. Bxe5 {[%emt 0:00:03]} Nf5 {[%emt 0:04:35]} 1/2-1/2

[Event "POL-chT 1 Liga 2019"]
[Site "Dzwirzyno"]
[Date "2019.09.14"]
[Round "8.6"]
[White "Malicka, Maria"]
[Black "Lach, Aleksandra"]
[Result "1/2-1/2"]
[ECO "B38"]
[WhiteElo "2095"]
[BlackElo "2173"]
[Annotator "NA"]
[PlyCount "93"]
[EventDate "2019.09.07"]
[EventType "team-tourn"]
[EventCountry "POL"]
[SourceTitle "playchess.com"]
[Source "ChessBase"]
[SourceQuality "1"]
[TimeControl "40/5400+30:1800+30"]

1. e4 {[%emt 0:00:00]} c5 {[%emt 0:00:00]} 2. Nf3 {[%emt 0:00:00]} Nc6 {[%emt 0:00:10]} 3. d4 {[%emt 0:00:01]} cxd4 {[%emt 0:00:34]} 4. Nxd4 {[%emt 0:00:04]} g6 {[%emt 0:00:52]} 5. c4 {[%emt 0:00:10]} Bg7 {[%emt 0:00:14]} 6. Be3 {[%emt 0:00:10]} Nf6 {[%emt 0:00:40]} 7. Nc3 {[%emt 0:00:08]} O-O {[%emt 0:02:36]} 8. Be2 {[%emt 0:00:07]} d6 {[%emt 0:00:47]} 9. O-O {[%emt 0:01:25]} Bd7 {[%emt 0:00:56]} 10. f3 {[%emt 0:01:00]} Nxd4 {[%emt 0:01:17]} 11. Bxd4 {[%emt 0:00:10]} a5 {[%emt 0:00:26]} 12. Qd2 {[%emt 0:02:03]} Bc6 {[%emt 0:05:27]} 13. Kh1 {[%emt 0:00:39]} Nd7 {[%emt 0:01:09]} 14. Bxg7 {[%emt 0:00:41]} Kxg7 {[%emt 0:00:18]} 15. f4 {[%emt 0:01:22]} Nc5 {[%emt 0:06:14]} 16. Rae1 {[%emt 0:01:06]} a4 {[%emt 0:07:59]} 17. Bd1 {[%emt 0:19:07]} Qa5 {[%emt 0:11:30]} 18. Re3 {[%emt 0:02:12]} f6 {[%emt 0:17:57]} 19. Rfe1 {[%emt 0:13:15]} Qb4 {[%emt 0:11:12]} 20. Qe2 {[%emt 0:15:51]} Ne6 {[%emt 0:18:50]} 21. Nd5 {[%emt 0:18:12]} Qc5 {[%emt 0:02:32]} 22. Qg4 {[%emt 0:07:14]} Bd7 {[%emt 0:04:36]} 23. f5 {[%emt 0:01:20]} Ng5 {[%emt 0:00:18]} 24. Nxe7 {[%emt 0:03:58]} Qe5 {[%emt 0:02:47]} 25. Nd5 {[%emt 0:02:15]} Rae8 {[%emt 0:01:21]} 26. h4 {[%emt 0:01:39]} Nf7 {[%emt 0:00:38]} 27. Qe2 {[%emt 0:02:37]} gxf5 {[%emt 0:01:19]} 28. exf5 {[%emt 0:01:09]} Qxf5 {[%emt 0:00:20]} 29. Bc2 {[%emt 0:03:53]} Rxe3 {[%emt 0:00:32]} 30. Nxe3 {[%emt 0:00:01]} Qf4 {[%emt 0:00:16]} 31. Qh5 {[%emt 0:00:41]} Qh6 {[%emt 0:00:20]} 32. Qxh6+ {[%emt 0:00:39]} Kxh6 {[%emt 0:00:21]} 33. Nd5 {[%emt 0:00:48]} Ne5 {[%emt 0:00:28]} 34. Nb6 {[%emt 0:00:09]} Bc6 {[%emt 0:00:36]} 35. Bxa4 {[%emt 0:00:39]} Bxa4 {[%emt 0:00:25]} 36. Nxa4 {[%emt 0:00:02]} Nxc4 {[%emt 0:00:22]} 37. Re7 {[%emt 0:00:20]} b5 {[%emt 0:00:20]} 38. Nc3 {[%emt 0:00:19]} b4 {[%emt 0:01:06]} 39. Nd5 {[%emt 0:00:07]} Nxb2 {[%emt 0:00:36]} 40. Nxb4 {[%emt 0:00:00]} Nc4 {[%emt 0:00:00]} 41. Nd5 {[%emt 0:03:11]} Ne5 {[%emt 0:18:18]} 42. Kh2 {[%emt 0:08:50]} Kg6 {[%emt 0:09:25]} 43. Re6 {[%emt 0:07:28]} Ng4+ {[%emt 0:01:27]} 44. Kg3 {[%emt 0:00:38]} h5 {[%emt 0:00:30]} 45. Rxd6 {[%emt 0:02:31]} Ra8 {[%emt 0:00:35]} 46. Nf4+ {[%emt 0:03:18]} Kh6 {[%emt 0:01:30]} 47. Rd3 {[%emt 0:04:37]} 1/2-1/2

[Event "POL-chT 1 Liga 2019"]
[Site "Dzwirzyno"]
[Date "2019.09.14"]
[Round "8.8"]
[White "Godzwon, Iwo"]
[Black "Zezulkin, Jurij"]
[Result "1-0"]
[ECO "B32"]
[WhiteElo "2265"]
[BlackElo "2434"]
[Annotator "NA"]
[PlyCount "76"]
[EventDate "2019.09.07"]
[EventType "team-tourn"]
[EventCountry "POL"]
[SourceTitle "playchess.com"]
[Source "ChessBase"]
[SourceQuality "1"]
[TimeControl "40/5400+30:1800+30"]

1. e4 {[%emt 0:00:00]} c5 {[%emt 0:00:00]} 2. Nf3 {[%emt 0:00:00]} Nc6 {[%emt 0:00:00]} 3. d4 {[%emt 0:00:00]} cxd4 {[%emt 0:00:00]} 4. Nxd4 {[%emt 0:00:00]} e5 {[%emt 0:01:18]} 5. Nb5 {[%emt 0:00:00]} d6 {[%emt 0:00:08]} 6. c4 {[%emt 0:00:00]} Be7 {[%emt 0:00:50]} 7. N1c3 {[%emt 0:00:09]} a6 {[%emt 0:00:38]} 8. Na3 {[%emt 0:00:03]} Be6 {[%emt 0:00:30]} 9. Nc2 {[%emt 0:00:18]} Bg5 {[%emt 0:01:06]} 10. Be2 {[%emt 0:00:08]} Bxc1 {[%emt 0:03:25]} 11. Rxc1 {[%emt 0:00:04]} Nf6 {[%emt 0:00:12]} 12. O-O {[%emt 0:01:19]} O-O {[%emt 0:01:18]} 13. Qd2 {[%emt 0:01:43]} Qb6 {[%emt 0:00:42]} 14. Rfd1 {[%emt 0:00:49]} Rfd8 {[%emt 0:01:00]} 15. b3 {[%emt 0:01:57]} Rac8 {[%emt 0:00:13]} 16. h3 {[%emt 0:00:07]} h6 {[%emt 0:03:02]} 17. Bf3 {[%emt 0:00:04]} Kf8 {[%emt 0:29:31]} 18. Nd5 {[%emt 0:06:48]} Bxd5 {[%emt 0:12:55]} 19. cxd5 {[%emt 0:00:04]} Na7 {[%emt 0:07:39]} 20. Ne3 {[%emt 0:01:32]} Nb5 {[%emt 0:02:21]} 21. Nc4 {[%emt 0:08:16]} Qa7 {[%emt 0:00:31]} 22. Qb4 {[%emt 0:06:28]} Qc5 {[%emt 0:03:57]} 23. Qd2 {[%emt 0:02:09]} Qa7 {[%emt 0:00:57]} 24. a4 {[%emt 0:33:14]} Nd4 {[%emt 0:00:07]} 25. Qb4 {[%emt 0:00:03]} Qc5 {[%emt 0:18:49]} 26. Qxb7 {[%emt 0:00:05]} Rc7 {[%emt 0:03:03]} 27. b4 {[%emt 0:06:45]} Qa7 {[%emt 0:03:25]} 28. Qxa7 {[%emt 0:00:06]} Rxa7 {[%emt 0:00:01]} 29. Na5 {[%emt 0:01:04]} Rb8 {[%emt 0:04:34]} 30. Rc4 {[%emt 0:02:20]} Nd7 {[%emt 0:00:44]} 31. Rcxd4 {[%emt 0:00:35]} exd4 {[%emt 0:00:02]} 32. Nc6 {[%emt 0:00:06]} Raa8 {[%emt 0:01:11]} 33. Nxb8 {[%emt 0:00:06]} Rxb8 {[%emt 0:00:01]} 34. Rxd4 {[%emt 0:00:04]} a5 {[%emt 0:00:33]} 35. Bg4 {[%emt 0:02:20]} Ne5 {[%emt 0:01:20]} 36. bxa5 {[%emt 0:00:59]} Rb1+ {[%emt 0:01:07]} 37. Kh2 {[%emt 0:00:37]} Rc1 {[%emt 0:00:39]} 38. a6 {[%emt 0:00:31]} Rc5 {[%emt 0:00:34]} 1-0

[Event "POL-chT 1 Liga 2019"]
[Site "Dzwirzyno"]
[Date "2019.09.14"]
[Round "8.9"]
[White "Rawicz, Karol"]
[Black "Wacior, Maciej"]
[Result "0-1"]
[ECO "D30"]
[WhiteElo "2200"]
[BlackElo "2116"]
[Annotator "NA"]
[PlyCount "66"]
[EventDate "2019.09.07"]
[EventType "team-tourn"]
[EventCountry "POL"]
[SourceTitle "playchess.com"]
[Source "ChessBase"]
[SourceQuality "1"]
[TimeControl "40/5400+30:1800+30"]

1. d4 {[%emt 0:00:47]} d5 {[%emt 0:00:00]} 2. c4 {[%emt 0:00:43]} e6 {[%emt 0:00:00]} 3. Nf3 {[%emt 0:00:43]} c6 {[%emt 0:00:22]} 4. Qc2 {[%emt 0:01:01]} Nf6 {[%emt 0:00:12]} 5. g3 {[%emt 0:00:43]} Bd6 {[%emt 0:02:08]} 6. Bg2 {[%emt 0:00:44]} Nbd7 {[%emt 0:04:49]} 7. Nbd2 {[%emt 0:01:07]} Qe7 {[%emt 0:01:20]} 8. O-O {[%emt 0:00:49]} O-O {[%emt 0:03:06]} 9. b3 {[%emt 0:04:28]} e5 {[%emt 0:02:41]} 10. dxe5 {[%emt 0:00:54]} Nxe5 {[%emt 0:00:08]} 11. Bb2 {[%emt 0:01:11]} Re8 {[%emt 0:07:35]} 12. e3 {[%emt 0:33:47]} dxc4 {[%emt 0:05:16]} 13. Nxc4 {[%emt 0:01:51]} Nxc4 {[%emt 0:01:22]} 14. bxc4 {[%emt 0:03:02]} Bg4 {[%emt 0:08:06]} 15. Nd4 {[%emt 0:01:08]} Rad8 {[%emt 0:13:20]} 16. h3 {[%emt 0:09:23]} Bh5 {[%emt 0:02:17]} 17. Nf5 {[%emt 0:01:32]} Qe6 {[%emt 0:00:14]} 18. Nxd6 {[%emt 0:12:11]} Rxd6 {[%emt 0:01:15]} 19. Bd4 {[%emt 0:03:03]} Red8 {[%emt 0:10:27]} 20. c5 {[%emt 0:09:24]} R6d7 {[%emt 0:00:17]} 21. f4 {[%emt 0:01:05]} Be2 {[%emt 0:10:14]} 22. Rf2 {[%emt 0:02:57]} Ba6 {[%emt 0:00:53]} 23. Rc1 {[%emt 0:00:28]} Nd5 {[%emt 0:02:38]} 24. f5 {[%emt 0:03:29]} Qh6 {[%emt 0:00:07]} 25. Qb3 {[%emt 0:02:04]} Re8 {[%emt 0:07:45]} 26. Re1 {[%emt 0:00:31]} Qg5 {[%emt 0:04:23]} 27. Kh2 {[%emt 0:00:26]} Qd8 {[%emt 0:01:23]} 28. Rc1 {[%emt 0:02:16]} Nxe3 {[%emt 0:00:33]} 29. Ba1 {[%emt 0:01:32]} Qg5 {[%emt 0:02:06]} 30. Qc3 {[%emt 0:01:01]} Nd1 {[%emt 0:00:10]} 31. Rxd1 {[%emt 0:00:35]} Rxd1 {[%emt 0:00:05]} 32. Rf4 {[%emt 0:00:30]} Rd3 {[%emt 0:00:15]} 33. Rg4 {[%emt 0:00:14]} Qxg4 0-1

[Event "POL-chT 1 Liga 2019"]
[Site "Dzwirzyno"]
[Date "2019.09.14"]
[Round "8.10"]
[White "Kowalski, Maciej"]
[Black "Jaroch, Karol"]
[Result "0-1"]
[ECO "A04"]
[WhiteElo "2095"]
[BlackElo "2236"]
[Annotator "NA"]
[PlyCount "102"]
[EventDate "2019.09.07"]
[EventType "team-tourn"]
[EventCountry "POL"]
[SourceTitle "playchess.com"]
[Source "ChessBase"]
[SourceQuality "1"]
[TimeControl "40/5400+30:1800+30"]

1. Nf3 {[%emt 0:00:56]} e6 {[%emt 0:00:45]} 2. b3 {[%emt 0:00:30]} d5 {[%emt 0:00:30]} 3. Bb2 {[%emt 0:00:30]} Nf6 {[%emt 0:00:30]} 4. g3 {[%emt 0:00:30]} Be7 {[%emt 0:00:30]} 5. Bg2 {[%emt 0:00:30]} c5 {[%emt 0:00:30]} 6. O-O {[%emt 0:00:30]} O-O {[%emt 0:00:30]} 7. e3 {[%emt 0:00:30]} a5 {[%emt 0:00:30]} 8. c4 {[%emt 0:00:30]} Nc6 {[%emt 0:00:30]} 9. Nc3 {[%emt 0:00:30]} b6 {[%emt 0:00:30]} 10. Qe2 {[%emt 0:00:30]} Ba6 {[%emt 0:00:30]} 11. d3 {[%emt 0:00:30]} Qc7 {[%emt 0:00:30]} 12. Rad1 {[%emt 0:00:30]} Rad8 {[%emt 0:00:30]} 13. Nh4 {[%emt 0:00:30]} Qd7 {[%emt 0:00:30]} 14. Na4 {[%emt 0:00:30]} Rb8 {[%emt 0:00:30]} 15. Rc1 {[%emt 0:00:30]} Rfd8 {[%emt 0:00:30]} 16. Nc3 {[%emt 0:00:30]} d4 {[%emt 0:00:30]} 17. Ne4 {[%emt 0:00:30]} Nxe4 {[%emt 0:00:30]} 18. Bxe4 {[%emt 0:00:30]} Bxh4 {[%emt 0:00:30]} 19. gxh4 {[%emt 0:00:30]} Bb7 {[%emt 0:00:30]} 20. Bxc6 {[%emt 0:00:30]} Bxc6 {[%emt 0:00:30]} 21. exd4 {[%emt 0:00:30]} cxd4 {[%emt 0:00:30]} 22. Rce1 {[%emt 0:00:30]} Re8 {[%emt 0:00:30]} 23. Qg4 {[%emt 0:00:30]} Rbd8 {[%emt 0:00:30]} 24. f4 {[%emt 0:00:30]} f5 {[%emt 0:00:30]} 25. Qg3 {[%emt 0:00:30]} Rf8 {[%emt 0:00:30]} 26. Kf2 {[%emt 0:00:30]} Rf6 {[%emt 0:00:30]} 27. Rg1 {[%emt 0:00:30]} Rdf8 {[%emt 0:00:30]} 28. Kf1 {[%emt 0:00:30]} Rd8 {[%emt 0:00:30]} 29. Qf2 {[%emt 0:00:30]} Bb7 {[%emt 0:00:30]} 30. Rg5 {[%emt 0:00:30]} b5 {[%emt 0:00:30]} 31. Rc1 {[%emt 0:00:30]} Rg6 {[%emt 0:00:30]} 32. Rxg6 {[%emt 0:00:30]} hxg6 {[%emt 0:00:30]} 33. cxb5 {[%emt 0:00:30]} Qxb5 {[%emt 0:00:30]} 34. Ke2 {[%emt 0:00:30]} e5 {[%emt 0:00:30]} 35. fxe5 {[%emt 0:00:30]} Qxe5+ {[%emt 0:00:30]} 36. Kd2 {[%emt 0:00:30]} a4 {[%emt 0:00:30]} 37. Rc4 {[%emt 0:00:30]} axb3 {[%emt 0:00:30]} 38. axb3 {[%emt 0:00:30]} Bd5 {[%emt 0:00:30]} 39. Rxd4 {[%emt 0:00:30]} Qc7 {[%emt 0:00:30]} 40. Rb4 {[%emt 0:00:30]} Rc8 {[%emt 0:00:30]} 41. Rc4 {[%emt 0:30:30]} Bxc4 {[%emt 0:30:30]} 42. bxc4 {[%emt 0:00:30]} Qa5+ {[%emt 0:00:30]} 43. Kc2 {[%emt 0:00:30]} Qa4+ {[%emt 0:00:30]} 44. Kc1 {[%emt 0:00:30]} Rd8 {[%emt 0:00:30]} 45. Qg3 {[%emt 0:00:30]} Qc6 {[%emt 0:00:30]} 46. h5 {[%emt 0:00:30]} Qd6 {[%emt 0:00:30]} 47. hxg6 {[%emt 0:00:30]} Qxg3 {[%emt 0:00:30]} 48. hxg3 {[%emt 0:00:30]} Rxd3 {[%emt 0:00:30]} 49. Be5 {[%emt 0:00:30]} Re3 {[%emt 0:00:30]} 50. Bb2 Rd3 {[%emt 1:02:34]} 51. Be5 {[%emt 1:11:32]} Re3 {[%emt 0:00:13]} 0-1

[Event "POL-chT 1 Liga 2019"]
[Site "Dzwirzyno"]
[Date "2019.09.14"]
[Round "8.11"]
[White "Samborski, Henryk"]
[Black "Rogala, Milosz"]
[Result "1/2-1/2"]
[ECO "C42"]
[WhiteElo "2098"]
[BlackElo "1788"]
[Annotator "NA"]
[PlyCount "83"]
[EventDate "2019.09.07"]
[EventType "team-tourn"]
[EventCountry "POL"]
[SourceTitle "playchess.com"]
[Source "ChessBase"]
[SourceQuality "1"]
[TimeControl "40/5400+30:1800+30"]

1. e4 {[%emt 0:00:00]} e5 {[%emt 0:00:00]} 2. Nf3 {[%emt 0:00:00]} Nf6 {[%emt 0:00:11]} 3. Nxe5 {[%emt 0:02:46]} d6 {[%emt 0:00:10]} 4. Nf3 {[%emt 0:00:08]} Nxe4 {[%emt 0:00:17]} 5. Nc3 {[%emt 0:00:08]} Nxc3 {[%emt 0:00:53]} 6. dxc3 {[%emt 0:00:04]} Be7 {[%emt 0:01:20]} 7. Be3 {[%emt 0:00:48]} Nc6 {[%emt 0:01:15]} 8. h3 {[%emt 0:10:18]} Be6 {[%emt 0:01:59]} 9. Qd2 {[%emt 0:07:51]} Qd7 {[%emt 0:01:46]} 10. Ng5 {[%emt 0:00:57]} Bxg5 {[%emt 0:04:37]} 11. Bxg5 {[%emt 0:00:04]} f6 {[%emt 0:00:17]} 12. Be3 {[%emt 0:01:00]} Ne5 {[%emt 0:03:03]} 13. b3 {[%emt 0:00:45]} O-O {[%emt 0:03:59]} 14. Be2 {[%emt 0:09:32]} Rae8 {[%emt 0:11:26]} 15. O-O-O {[%emt 0:03:44]} a5 {[%emt 0:03:38]} 16. a4 {[%emt 0:08:09]} Qf7 {[%emt 0:03:33]} 17. c4 {[%emt 0:06:24]} b6 {[%emt 0:05:17]} 18. g4 {[%emt 0:03:45]} Nd7 {[%emt 0:01:34]} 19. f4 {[%emt 0:07:41]} f5 {[%emt 0:02:34]} 20. Bf3 {[%emt 0:05:29]} Nc5 {[%emt 0:02:58]} 21. g5 {[%emt 0:03:32]} Kh8 {[%emt 0:07:04]} 22. Bd4 {[%emt 0:02:38]} Bxc4 {[%emt 0:07:12]} 23. Bxc5 {[%emt 0:05:06]} bxc5 {[%emt 0:04:09]} 24. bxc4 {[%emt 0:06:25]} Qxc4 {[%emt 0:00:10]} 25. Bc6 {[%emt 0:00:08]} Qa2 {[%emt 0:07:55]} 26. Qc3 {[%emt 0:01:15]} Rb8 {[%emt 0:00:42]} 27. Rhe1 {[%emt 0:00:40]} Rb6 {[%emt 0:01:13]} 28. Re7 {[%emt 0:00:20]} Rg8 {[%emt 0:01:21]} 29. Bb5 {[%emt 0:01:09]} c6 {[%emt 0:02:12]} 30. Bc4 {[%emt 0:00:44]} Rb1+ {[%emt 0:00:11]} 31. Kd2 {[%emt 0:00:02]} Rxd1+ {[%emt 0:00:07]} 32. Kxd1 {[%emt 0:00:09]} Qb1+ {[%emt 0:00:07]} 33. Kd2 {[%emt 0:01:45]} d5 {[%emt 0:00:51]} 34. Re1 {[%emt 0:00:35]} Qb8 {[%emt 0:00:31]} 35. Bf1 {[%emt 0:07:00]} Qxf4+ {[%emt 0:01:06]} 36. Qe3 {[%emt 0:00:28]} Qxa4 {[%emt 0:06:23]} 37. Qxc5 {[%emt 0:00:10]} Qf4+ {[%emt 0:00:39]} 38. Qe3 {[%emt 0:01:45]} Qb4+ {[%emt 0:00:39]} 39. Qc3 {[%emt 0:01:09]} Qf4+ {[%emt 0:01:05]} 40. Qe3 {[%emt 0:00:00]} Qb4+ {[%emt 0:00:00]} 41. Qc3 {[%emt 0:14:43]} Qf4+ {[%emt 0:02:04]} 42. Qe3 {[%emt 0:06:52]} 1/2-1/2

[Event "POL-chT 1 Liga 2019"]
[Site "Dzwirzyno"]
[Date "2019.09.14"]
[Round "8.12"]
[White "Sapis, Lucyna"]
[Black "Worek, Joanna"]
[Result "0-1"]
[ECO "A46"]
[WhiteElo "2042"]
[BlackElo "2308"]
[Annotator "NA"]
[PlyCount "112"]
[EventDate "2019.09.07"]
[EventType "team-tourn"]
[EventCountry "POL"]
[SourceTitle "playchess.com"]
[Source "ChessBase"]
[SourceQuality "1"]
[TimeControl "40/5400+30:1800+30"]

1. d4 {[%emt 0:00:00]} Nf6 {[%emt 0:00:00]} 2. Nf3 {[%emt 0:00:00]} e6 {[%emt 0:00:28]} 3. Bf4 {[%emt 0:01:21]} c5 {[%emt 0:01:37]} 4. e3 {[%emt 0:00:48]} Nc6 {[%emt 0:00:49]} 5. c3 {[%emt 0:00:54]} b6 {[%emt 0:01:24]} 6. Nbd2 {[%emt 0:00:46]} d5 {[%emt 0:03:25]} 7. Bb5 {[%emt 0:01:09]} Bd7 {[%emt 0:02:45]} 8. Qa4 {[%emt 0:03:01]} Nb8 {[%emt 0:09:01]} 9. Bxb8 {[%emt 0:02:29]} Qxb8 {[%emt 0:02:21]} 10. Ne5 {[%emt 0:02:28]} Qc7 {[%emt 0:00:48]} 11. Nxd7 {[%emt 0:10:03]} Nxd7 {[%emt 0:00:06]} 12. Bxd7+ {[%emt 0:00:07]} Qxd7 {[%emt 0:00:05]} 13. Qxd7+ {[%emt 0:00:10]} Kxd7 {[%emt 0:00:06]} 14. Ke2 {[%emt 0:00:48]} Bd6 {[%emt 0:08:29]} 15. h3 {[%emt 0:02:38]} h5 {[%emt 0:08:54]} 16. Rad1 {[%emt 0:02:57]} cxd4 {[%emt 0:01:26]} 17. exd4 {[%emt 0:01:08]} g5 {[%emt 0:02:23]} 18. g3 {[%emt 0:09:47]} Rag8 {[%emt 0:09:17]} 19. b3 {[%emt 0:01:04]} h4 {[%emt 0:04:35]} 20. g4 {[%emt 0:01:34]} Bf4 {[%emt 0:00:33]} 21. Nb1 {[%emt 0:04:55]} Rc8 {[%emt 0:01:09]} 22. Rd3 {[%emt 0:04:42]} Rc6 {[%emt 0:02:06]} 23. Rhd1 {[%emt 0:02:39]} b5 {[%emt 0:01:04]} 24. a3 {[%emt 0:09:24]} a5 {[%emt 0:02:22]} 25. Rf3 {[%emt 0:03:31]} f5 {[%emt 0:07:20]} 26. Rg1 {[%emt 0:05:26]} b4 {[%emt 0:01:23]} 27. a4 {[%emt 0:05:09]} Rhc8 {[%emt 0:02:31]} 28. Kd3 {[%emt 0:04:15]} Rxc3+ {[%emt 0:09:20]} 29. Nxc3 {[%emt 0:00:32]} Rxc3+ {[%emt 0:00:05]} 30. Ke2 {[%emt 0:00:20]} Rc2+ {[%emt 0:00:03]} 31. Kf1 {[%emt 0:03:07]} Rd2 {[%emt 0:02:46]} 32. Rxf4 {[%emt 0:01:57]} gxf4 {[%emt 0:00:06]} 33. gxf5 {[%emt 0:00:30]} f3 {[%emt 0:05:21]} 34. Ke1 {[%emt 0:04:08]} Rxd4 {[%emt 0:02:01]} 35. fxe6+ {[%emt 0:00:32]} Kxe6 {[%emt 0:00:08]} 36. Rg6+ {[%emt 0:00:29]} Ke5 {[%emt 0:00:11]} 37. Ra6 {[%emt 0:00:29]} Ke4 {[%emt 0:00:53]} 38. Rxa5 {[%emt 0:00:22]} Kd3 {[%emt 0:00:23]} 39. Rc5 {[%emt 0:01:30]} Re4+ {[%emt 0:00:45]} 40. Kd1 {[%emt 0:00:00]} Re5 {[%emt 0:00:00]} 41. a5 {[%emt 0:01:35]} Rg5 {[%emt 0:08:17]} 42. Kc1 {[%emt 0:00:52]} Rg1+ {[%emt 0:03:22]} 43. Kb2 {[%emt 0:04:46]} Ke2 {[%emt 0:00:14]} 44. Rc2+ {[%emt 0:01:35]} Kf1 {[%emt 0:00:23]} 45. Rd2 {[%emt 0:00:46]} Rg6 {[%emt 0:00:17]} 46. Kc2 {[%emt 0:01:20]} Kg2 {[%emt 0:00:21]} 47. Kd3 {[%emt 0:01:52]} Kxh3 {[%emt 0:00:11]} 48. Ke3 {[%emt 0:00:24]} Kg2 {[%emt 0:00:07]} 49. Rxd5 {[%emt 0:00:11]} h3 {[%emt 0:00:22]} 50. a6 {[%emt 0:01:02]} h2 {[%emt 0:05:51]} 51. a7 {[%emt 0:00:49]} Re6+ {[%emt 0:01:39]} 52. Kf4 {[%emt 0:01:30]} h1=Q {[%emt 0:03:20]} 53. Rg5+ {[%emt 0:00:46]} Kxf2 {[%emt 0:00:08]} 54. a8=Q {[%emt 0:00:09]} Qh2+ {[%emt 0:00:13]} 55. Kf5 {[%emt 0:06:32]} Qe5+ {[%emt 0:00:06]} 56. Kg4 {[%emt 0:00:01]} Qg3+ {[%emt 0:00:08]} 0-1

[Event "POL-chT 1 Liga 2019"]
[Site "Dzwirzyno"]
[Date "2019.09.14"]
[Round "8.13"]
[White "Antoniewski, Rafal"]
[Black "Golubka, Petro"]
[Result "1/2-1/2"]
[ECO "B17"]
[WhiteElo "2497"]
[BlackElo "2479"]
[Annotator "ChessBase"]
[PlyCount "29"]
[EventDate "2019.09.07"]
[EventType "team-tourn"]
[EventCountry "POL"]
[SourceTitle "playchess.com"]
[Source "ChessBase"]
[SourceQuality "1"]
[TimeControl "40/5400+30:1800+30"]

1. e4 {[%emt 0:00:00]} c6 {[%emt 0:00:54]} 2. d4 {[%emt 0:00:51]} d5 {[%emt 0:00:04]} 3. Nd2 {[%emt 0:01:21]} dxe4 {[%emt 0:00:06]} 4. Nxe4 {[%emt 0:00:05]} Nd7 {[%emt 0:00:05]} 5. Nf3 {[%emt 0:03:00]} Ngf6 {[%emt 0:00:08]} 6. Ng3 {[%emt 0:03:41]} e6 {[%emt 0:00:07]} 7. Bd3 {[%emt 0:00:08]} Be7 {[%emt 0:00:05]} 8. O-O {[%emt 0:00:07]} b6 {[%emt 0:00:18]} 9. Qe2 {[%emt 0:05:57]} O-O {[%emt 0:00:40]} 10. c4 {[%emt 0:02:14]} Bb7 {[%emt 0:02:06]} 11. b3 {[%emt 0:01:01]} a5 {[%emt 0:01:53]} 12. Bb2 {[%emt 0:02:14]} a4 {[%emt 0:07:57]} 13. Rfd1 {[%emt 0:05:54]} axb3 {[%emt 0:03:01]} 14. axb3 {[%emt 0:01:09]} Qc7 {[%emt 0:02:29]} 15. Bc2 {[%emt 0:19:41]} 1/2-1/2

[Event "POL-chT 1 Liga 2019"]
[Site "Dzwirzyno"]
[Date "2019.09.14"]
[Round "8.14"]
[White "Kislinsky, Alexey"]
[Black "Cyborowski, Lukasz"]
[Result "1/2-1/2"]
[ECO "C42"]
[WhiteElo "2436"]
[BlackElo "2509"]
[Annotator "ChessBase"]
[PlyCount "21"]
[EventDate "2019.09.07"]
[EventType "team-tourn"]
[EventCountry "POL"]
[SourceTitle "playchess.com"]
[Source "ChessBase"]
[SourceQuality "1"]
[TimeControl "40/5400+30:1800+30"]

1. e4 {[%emt 0:00:00]} e5 {[%emt 0:00:00]} 2. Nf3 {[%emt 0:00:00]} Nf6 {[%emt 0:00:00]} 3. Nxe5 {[%emt 0:00:15]} d6 {[%emt 0:00:00]} 4. Nf3 {[%emt 0:01:06]} Nxe4 {[%emt 0:00:05]} 5. Bd3 {[%emt 0:00:12]} Nf6 {[%emt 0:00:44]} 6. h3 {[%emt 0:00:12]} Be7 {[%emt 0:05:19]} 7. c3 {[%emt 0:01:10]} O-O {[%emt 0:01:01]} 8. Bc2 {[%emt 0:00:09]} b6 {[%emt 0:06:37]} 9. O-O {[%emt 0:02:33]} Bb7 {[%emt 0:00:08]} 10. Re1 {[%emt 0:00:34]} Re8 {[%emt 0:01:07]} 11. d4 {[%emt 0:00:06]} 1/2-1/2

[Event "POL-chT 1 Liga 2019"]
[Site "Dzwirzyno"]
[Date "2019.09.14"]
[Round "8.15"]
[White "Protaziuk, Grzegorz"]
[Black "Grabarczyk, Miroslaw"]
[Result "1/2-1/2"]
[ECO "C42"]
[WhiteElo "2334"]
[BlackElo "2374"]
[Annotator "NA"]
[PlyCount "23"]
[EventDate "2019.09.07"]
[EventType "team-tourn"]
[EventCountry "POL"]
[SourceTitle "playchess.com"]
[Source "ChessBase"]
[SourceQuality "1"]
[TimeControl "40/5400+30:1800+30"]

1. e4 {[%emt 0:00:00]} e5 {[%emt 0:00:01]} 2. Nf3 {[%emt 0:00:00]} Nf6 {[%emt 0:00:34]} 3. Nxe5 {[%emt 0:00:00]} d6 {[%emt 0:00:15]} 4. Nf3 {[%emt 0:00:00]} Nxe4 {[%emt 0:00:13]} 5. Nc3 {[%emt 0:01:37]} Nf6 {[%emt 0:03:10]} 6. d4 {[%emt 0:01:43]} Be7 {[%emt 0:00:29]} 7. Bg5 {[%emt 0:01:30]} Bf5 {[%emt 0:04:05]} 8. Bd3 {[%emt 0:04:33]} Bxd3 {[%emt 0:00:49]} 9. Qxd3 {[%emt 0:00:05]} c6 {[%emt 0:03:26]} 10. O-O-O {[%emt 0:03:46]} O-O {[%emt 0:00:15]} 11. h4 {[%emt 0:05:54]} Nbd7 {[%emt 0:08:57]} 12. Rde1 {[%emt 0:04:08]} 1/2-1/2